Cogmind - Beta 16 @@@ ROGUE MODE // 2025.11.07 @ 16:07:18 Player: Velocity Result: Destroyed by D-53 Grenadier with Mini Grenade Launcher Performance ------------- Evolutions (0) 0 Regions Visited (4) 800 Robots Destroyed (5) 25 Value Destroyed (179) 179 Prototype IDs (23) 460 Alien Tech Used (0) 0 Bonus (300) 300 TOTAL SCORE: 1764 Bonus ------- Aligned with FarCom 300 Cogmind --------- Core Integrity 0/250 Matter 240/300 Energy 100/100 System Corruption 7% Temperature Cool (0) Movement Core (200) Ox3 Location -9/Mines Parts ------- > --- POWER (1) -------- (None) > --- PROPULSION (2) --- (None) > --- UTILITY (2) ------ Medium Storage Unit > --- WEAPON (2) ------- (None) > --- INVENTORY (10) --- Ion Engine Light Nuclear Core Heat Sink 0b10 Alert Chip ECM Suite Small Laser Latent Energy Streamer Mining Claw Peak State ------------ > --- POWER ------------ Ion Engine > --- PROPULSION ------- Wheel Compact Wheel > --- UTILITY ---------- Medium Storage Unit Seismic Detector > --- WEAPON ----------- Particle Gun Latent Energy Streamer > --- INVENTORY -------- Ion Engine Light Nuclear Core Aluminum Leg Aluminum Leg Aluminum Leg Heat Sink ECM Suite Small Laser Light Cannon Mining Claw [Rating: 18] Favorites ----------- Power Ion Engine Engine Ion Engine Propulsion Aluminum Leg Leg Aluminum Leg Wheel Wheel Utility Seismic Detector Device Seismic Detector Storage Medium Storage Unit Weapon Assault Rifle Energy Gun Particle Gun Energy Cannon Latent Energy Streamer Ballistic Gun Assault Rifle Ballistic Cannon Light Cannon Build | -11 -10 -10 -10 -9 ------- Run | Yrd Mat Min Exi Min Slots Evolved . | . . . . . Power . | . . . . . Propulsion . | . . . . . Utility . | . . . . . Weapon . | . . . . . Parts Attached 15 | 7 5 . 2 1 Power 2 | 1 1 . . . Engine 2 | 1 1 . . . Core . | . . . . . Reactor . | . . . . . Propulsion 5 | 2 2 . . 1 Treads . | . . . . . Leg 3 | 2 . . . 1 Wheel 2 | . 2 . . . Hover . | . . . . . Flight . | . . . . . Utility 3 | 2 1 . . . Device 1 | 1 . . . . Storage 2 | 1 1 . . . Processor . | . . . . . Hackware . | . . . . . Protection . | . . . . . Artifact . | . . . . . Weapon 5 | 2 1 . 2 . Energy Gun 2 | 1 1 . . . Energy Cannon 1 | . . . 1 . Ballistic Gun 1 | 1 . . . . Ballistic Cannon 1 | . . . 1 . Launcher . | . . . . . Special Weapon . | . . . . . Impact Weapon . | . . . . . Slashing Weapon . | . . . . . Piercing Weapon . | . . . . . Special Melee Weapon . | . . . . . Unidentified Prototypes . | . . . . . Parts Lost 10 | . 2 . . 8 Power 2 | . 1 . . 1 Propulsion 4 | . . . . 4 Utility 1 | . . . . 1 Weapon 3 | . 1 . . 2 Highest Loss Streak 8 | . 2 . . 8 To Critical Strikes . | . . . . . Average Backups 8 | 2 7 10 10 9 Power 1 | . 1 2 2 2 Propulsion 2 | 1 3 3 2 1 Utility 1 | . . 2 2 3 Weapon 2 | . 2 3 3 3 Tool/Special . | . . . . . Unused Backups 9 | . 2 . . 7 Power 2 | . . . . 2 Propulsion 2 | . 2 . . . Utility 3 | . . . . 3 Weapon 2 | . . . . 2 Tool/Special . | . . . . . Average Slot Usage (%) 97 | . 98 100 100 74 Engine 13 | . 14 14 14 11 Leg 16 | . 26 . . . Wheel 10 | . 1 28 28 16 Device 13 | . 14 14 14 8 Storage 14 | . 14 14 14 14 Energy Gun 12 | . 12 14 14 11 Ballistic Gun 12 | . 14 14 7 . Ballistic Cannon 1 | . . . 6 11 Peak Build Rating 18 | 7 9 9 18 16 Average Rating 8 | 5 7 9 9 9 On Entrance 7 | . 7 9 9 10 Avg Prop Armor Cover (%) . | . . . . . Naked Turns . | . . . . . Heaviest Build 22 | 13 21 21 22 22 Greatest Support 26 | 20 26 26 26 26 Greatest Overweight (x) 3 | . 1 . . 3 Average Overweight (x) . | . . . . . Largest Inventory Capacity 10 | 8 10 10 10 10 Average Capacity 9 | 7 9 10 10 10 Most Carried 10 | 5 10 10 10 10 Average Carried 8 | 2 7 10 9 9 Final Capacity 10 | 8 10 10 10 10 Final Carried 10 | 5 10 10 10 8 Class Distribution -------------------- 100% | Mutant Dominant Class ---------------- Mutant | -10/Materials Mutant | -10/Mines Mutant | -10/Exiles Mutant | -9/Mines Resources | -11 -10 -10 -10 -9 ----------- Run | Yrd Mat Min Exi Min Matter Collected 350 | 217 133 . . . Remotely . | . . . . . Salvage Created 298 | 15 189 . . 94 Parts 14 | 4 10 . . . Haulers Intercepted . | . . . . . Recyclers Shooed . | . . . . . Parts Field Recycled . | . . . . . Retrieved Matter . | . . . . . Parts Self-Destructed . | . . . . . Prevented . | . . . . . Parts Restored . | . . . . . Kills | -11 -10 -10 -10 -9 ------- Run | Yrd Mat Min Exi Min Combat Hostiles Destroyed 9 | . 4 . . 5 Guns 3 | . 3 . . . AOE 6 | . 1 . . 5 Classes Destroyed 3 | 1 1 . . 1 Tunneler 1 | 1 . . . . Grunt 4 | . 4 . . . Assembled 5 | . . . . 5 Best Kill Streak 5 | 1 2 . . 5 Combat Bots Only 5 | . 2 . . 5 Max Kills in Single Turn 5 | 1 1 . . 5 Gunslinging . | . . . . . Exploded 5 | . 1 . . 5 Melee . | . . . . . Uniques/NPCs Destroyed . | . . . . . Combat | -11 -10 -10 -10 -9 -------- Run | Yrd Mat Min Exi Min Hostile Shots Fired 95 | . 43 . . 52 Missed 32 | . 12 . . 20 Hits 63 | . 31 . . 32 Melee 6 | . . . . 6 Projectile 57 | . 31 . . 26 AOE 6 | . . . . 6 Damage Taken 1106 | . 437 . . 669 Core 256 | . 75 . . 181 Absorbed by Shields . | . . . . . Core Remaining (%) 100 | 100 . . . . Volleys Fired 23 | 1 19 . . 3 Largest 2 | 2 2 . . 2 Hottest 95 | 60 60 . . 95 Shots Fired 38 | 2 30 . . 6 Gun 34 | 2 30 . . 2 Cannon 4 | . . . . 4 Launcher . | . . . . . Special . | . . . . . Kinetic 23 | 1 19 . . 3 Thermal 2 | . . . . 2 Explosive . | . . . . . Electromagnetic 13 | 1 11 . . 1 Robot Hit Streak 9 | 1 9 . . 1 Robot Miss Streak 3 | 1 1 . . 3 Penetration Max . | . . . . . Secondary Targets . | . . . . . Shots Hit Robots 28 | 1 25 . . 2 Core Hits 19 | 1 9 . . 9 Critical Kills . | . . . . . Critical Parts Destroyed . | . . . . . Critical Strikes 1 | . 1 . . . Corrupt 1 | . 1 . . . Melee Attacks . | . . . . . Impact . | . . . . . Slashing . | . . . . . Piercing . | . . . . . Sneak Attacks . | . . . . . Combat Hostiles . | . . . . . Follow-up Attacks . | . . . . . Damage Inflicted 956 | 10 375 . . 571 Guns 331 | 10 321 . . . Cannons 38 | . . . . 38 Explosions 587 | . 54 . . 533 Melee . | . . . . . Ramming . | . . . . . Kinetic 251 | 10 207 . . 34 Thermal 23 | . 23 . . . Explosive . | . . . . . Electromagnetic 682 | . 145 . . 537 Impact . | . . . . . Slashing . | . . . . . Piercing . | . . . . . Highest Corruption 7 | . 1 1 1 7 Average Corruption 1 | . 1 1 1 3 Corruption Purged . | . . . . . Corruption Blocked . | . . . . . Effects 5 | . 2 . 2 1 Message Errors 1 | . 1 . . . Matter Fused 1 | . . . 1 . Heat Flow Errors 1 | . . . . 1 Data Loss (minor) 1 | . . . 1 . Alerts 1 | . 1 . . . Overload Shots . | . . . . . Overflow Damage 6 | . 6 . . . Projectiles . | . . . . . Explosions 6 | . 6 . . . Melee . | . . . . . Knockbacks 1 | . . . . 1 Impact . | . . . . . Kinetic 1 | . . . . 1 Secondary . | . . . . . Self-Inflicted Damage 62 | . 62 . . . Shots 2 | . 2 . . . Rammed . | . . . . . Targets Rammed . | . . . . . Kicked . | . . . . . Crushed . | . . . . . Highest Temperature 123 | . 55 . . 123 Average Temperature 27 | . 18 . . 43 Received Heat Transfer 212 | . 192 . . 20 Siege Activations . | . . . . . Martial Activations . | . . . . . Shielding Activations . | . . . . . Robots Disrupted 1 | . 1 . . . Combat Hostiles 1 | . 1 . . . Robots Corrupted . | . . . . . Combat Hostiles . | . . . . . Parts Fried . | . . . . . Impact Corruptions . | . . . . . Robots Melted . | . . . . . Combat Hostiles . | . . . . . Parts Melted . | . . . . . Heat Transferred 50 | . 50 . . . Parts Sabotaged . | . . . . . Parts Stolen . | . . . . . Parts Stripped . | . . . . . Power Chain Reactions 1 | . 1 . . . Latent Energy Used 119 | . . . . 119 LE Corruption 2 | . . . . 2 Alert | -11 -10 -10 -10 -9 ------- Run | Yrd Mat Min Exi Min Maximum Alert Level . | . . . . . Low Security (%) 100 | 100 100 100 . 100 Level 1 . | . . . . . Level 2 . | . . . . . Level 3 . | . . . . . Level 4 . | . . . . . Level 5 . | . . . . . High Security . | . . . . . Max Security . | . . . . . Peak Influence 60 | 5 60 23 . 7 Initial 23 | . . 23 . . Average 8 | . 10 6 . . Influence Increases 227 | 5 215 . . 7 Destroy 0b10 Robot/C 80 | . 80 . . . Destroy 0b10 Robot/NC 5 | 5 . . . . Destroy Leader 20 | . 20 . . . Successful Hack 7 | . 7 . . . Disable Machine 15 | . 15 . . . Destroy Structure 10 | . 3 . . 7 Lose Combat Pursuer 90 | . 90 . . . Influence Decreases 227 | 5 155 60 . 7 Entered New Map 37 | . . 37 . . Time Decay 163 | 5 135 23 . . Lost Part 27 | . 20 . . 7 Squads Dispatched 1 | . 1 . . . Investigation . | . . . . . Extermination . | . . . . . Reinforcement 1 | . 1 . . . Assault . | . . . . . Garrison . | . . . . . Intercept . | . . . . . Searches Triggered . | . . . . . Construction Impeded . | . . . . . Haulers Reinforced . | . . . . . Active Scanning Responses . | . . . . . Cargo Convoy Interrupts . | . . . . . Stealth | -11 -10 -10 -10 -9 --------- Run | Yrd Mat Min Exi Min Distress Signals 2 | . 2 . . . Communications Jammed . | . . . . . Distress Signals . | . . . . . Times Spotted 39 | . 18 . . 21 Peak Tracking Total 13 | . 6 . . 13 Tactical Retreats 2 | . 2 . . . Traps | -11 -10 -10 -10 -9 ------- Run | Yrd Mat Min Exi Min Traps Triggered 1 | . 1 . . . Indirectly . | . . . . . Trap Hack Attempts . | . . . . . Triggered . | . . . . . Disarmed . | . . . . . Reprogrammed . | . . . . . Reused . | . . . . . Traps Extracted . | . . . . . Installed . | . . . . . Triggered . | . . . . . Machines | -11 -10 -10 -10 -9 ---------- Run | Yrd Mat Min Exi Min Machines Disabled 1 | . 1 . . . Max in Single Turn 1 | . 1 . . . Machines Repaired . | . . . . . Machines Dismantled . | . . . . . Machines Sabotaged . | . . . . . Overloaded Fab Kills . | . . . . . Hacking | -11 -10 -10 -10 -9 --------- Run | Yrd Mat Min Exi Min Machines Accessed 3 | . 2 . 1 . Terminals 2 | . 2 . . . Fabricators . | . . . . . Repair Stations . | . . . . . Recycling Units . | . . . . . Scanalyzers . | . . . . . Garrison Access . | . . . . . Total Hacks 5 | . 4 . 1 . Successful 2 | . 1 . 1 . Failed 3 | . 3 . . . Catastrophic 1 | . 1 . . . Database Lockouts . | . . . . . Manual 1 | . . . 1 . Terminals 4 | . 4 . . . Fabricators . | . . . . . Repair Stations . | . . . . . Recycling Units . | . . . . . Scanalyzers . | . . . . . Garrison Access . | . . . . . Terminal Hacks 2 | . 1 . 1 . Branch Access Points 1 | . 1 . . . Proto ID Catalog 1 | . . . 1 . Fabricator Hacks . | . . . . . Repair Station Hacks . | . . . . . Recycling Unit Hacks . | . . . . . Scanalyzer . | . . . . . Garrison Access Hacks . | . . . . . Unauthorized Hacks . | . . . . . Terminals . | . . . . . Fabricators . | . . . . . Repair Stations . | . . . . . Recycling Units . | . . . . . Scanalyzers . | . . . . . Garrison Access . | . . . . . Data Cores Recovered . | . . . . . Used . | . . . . . Hacking Detections 1 | . 1 . . . Full Trace Events 1 | . 1 . . . Feedback Events . | . . . . . Feedback Blocked . | . . . . . Robot Schematics Acquired . | . . . . . Robots Built . | . . . . . Authchips . | . . . . . Time . | . . . . . Total Robot Build Rating . | . . . . . Part Schematics Acquired . | . . . . . Parts Built . | . . . . . Authchips . | . . . . . Time . | . . . . . Total Part Build Rating . | . . . . . Part Studies Acquired . | . . . . . Parts Repaired . | . . . . . Time . | . . . . . Parts Recycled . | . . . . . Recycled Matter . | . . . . . Retrieved Matter . | . . . . . Retrieved Components . | . . . . . Parts Scanalyzed . | . . . . . Part Schematics Acquired . | . . . . . Parts Damaged . | . . . . . Bothacking | -11 -10 -10 -10 -9 ------------ Run | Yrd Mat Min Exi Min Used RIF Installer . | . . . . . Robots Hacked . | . . . . . Non-combat . | . . . . . Combat . | . . . . . Robot Hacks Applied . | . . . . . Relay Couplers Released . | . . . . . Fabnet Peak Effective % . | . . . . . Robots Rewired . | . . . . . Allies Hacked . | . . . . . Hacks Repelled . | . . . . . Allies | -11 -10 -10 -10 -9 -------- Run | Yrd Mat Min Exi Min Total Allies . | . . . . . Largest Group . | . . . . . Highest-Rated Group . | . . . . . Highest-Rated Ally . | . . . . . Total Orders . | . . . . . Ally Attacks . | . . . . . Total Damage . | . . . . . Kills . | . . . . . Allies Corrupted . | . . . . . Allies Melted . | . . . . . Intel | -11 -10 -10 -10 -9 ------- Run | Yrd Mat Min Exi Min Active Infowar (turns) 986 | 9 636 125 195 21 Seismic 986 | 9 636 125 195 21 Robot Analysis Total . | . . . . . Derelict Logs Recovered 2 | . . 2 . . Drone Launches . | . . . . . Drone Recoveries . | . . . . . Exploration | -11 -10 -10 -10 -9 ------------- Run | Yrd Mat Min Exi Min Turns Passed 1069 | 72 636 125 195 41 Spaces Moved 805 | 46 398 139 211 11 Core 3 | 1 . . . 2 Treads . | . . . . . Legs 409 | 45 360 . . 4 Wheels 393 | . 38 139 211 5 Hover . | . . . . . Flight . | . . . . . Fastest Speed 50 | 50 90 90 90 90 Average Speed 113 | 118 133 90 90 127 Slowest Speed 200 | 120 190 90 90 200 Overloaded Moves . | . . . . . Propulsion Burnouts . | . . . . . Robots Hopped . | . . . . . Potential Cave-ins . | . . . . . Cave-ins Triggered . | . . . . . Exploration Rate (%) 35 | 3 68 36 61 9 Regions Visited 4 Branch Regions 3 Pre-discovered Areas . | . . . . . Known Exits Taken 1 | . 1 . . . Unknown Exits Taken 3 | 1 . 1 1 . Scrap Searched . | . . . . . Spaces Dug . | . . . . . Terrain Destroyed 9 | . 2 . . 7 Melee . | . . . . . Projectile . | . . . . . AOE 9 | . 2 . . 7 Terrain Rammed . | . . . . . Walls Destroyed . | . . . . . Machines Disabled . | . . . . . Actions | -11 -10 -10 -10 -9 --------- Run | Yrd Mat Min Exi Min Total 914 | 58 471 138 215 32 Wait 52 | . 38 . . 14 Move 801 | 45 397 138 210 11 Hop . | . . . . . Pick Up 15 | 5 9 . 1 . Fast Attach 8 | 7 . . 1 . Attach 4 | . 2 . . 2 Detach . | . . . . . Swap 6 | . 3 . 1 2 Drop 5 | . 3 . 2 . Fire 23 | 1 19 . . 3 Melee . | . . . . . Ram . | . . . . . Kick . | . . . . . Crush . | . . . . . Escape Stasis . | . . . . . Rewire . | . . . . . Trap . | . . . . . Miscellaneous . | . . . . . Route ------- -11/Scrapyard -10/Materials (discovered 3 exits: [*Mat] / *Min x2) -10/Mines -10/Exiles -9/Mines History --------- Turn | Location | Event 22 | -11/Scrapyard | Discovered new exit (range 14) 73 | -11/Scrapyard | Entered Materials 313 | -10/Materials | Build established: Mutant 329 | -10/Materials | Discovered new exit (range 10) 371 | -10/Materials | Identified exit to Mines 709 | -10/Materials | Entered Mines 827 | -10/Mines | Learned Materials machine intel 830 | -10/Mines | Deemed a non-threat by the Exiles lab entrance 830 | -10/Mines | Discovered new exit (range 5) 834 | -10/Mines | Entered Exiles 857 | -10/Exiles | Met 8R-AWN 872 | -10/Exiles | Met EX-HEX 898 | -10/Exiles | Met EX-BIN 909 | -10/Exiles | Aligned with FarCom system 910 | -10/Exiles | Given EX-Vault access code 931 | -10/Exiles | Opened EX-Vault 938 | -10/Exiles | Found Latent Energy Streamer 944 | -10/Exiles | Found 0b10 Alert Chip 964 | -10/Exiles | Warned to stay clear of 0b10 Research branches 989 | -10/Exiles | Met EX-DEC 1021 | -10/Exiles | Discovered new exit (range 10) 1029 | -10/Exiles | Stole two prototypes: 0b10 Alert Chip, Latent Energy Streamer 1029 | -10/Exiles | Entered Mines 1030 | -9/Mines | Assembled infested the area 1064 | -9/Mines | Core integrity fell below 50% 1069 | -9/Mines | Core integrity fell below 20% 1070 | -9/Mines | Destroyed by D-53 Grenadier with Mini Grenade Launcher Last Messages --------------- payload. 01062_ D-53 Grenadier unfolds itself. 01062_ as-82631 destroyed. 01062_ as-98870 destroyed. 01062_ Lgt. Cannon destroyed. 01063_ as-89371 destroyed. 01063_ Aluminum Leg destroyed. 01064_ as-65564 IFF system glitched. 01065_ Particle Gun destroyed. 01065_ as-79254 misfires. 01066_ as-19045 destroyed. 01066_ as-38700 destroyed. 01067_ Aluminum Leg destroyed. 01068_ as-69822 destroyed. 01068_ as-18913 destroyed. 01069_ as-22261 destroyed. 01069_ as-12651 destroyed. 01069_ as-65564 destroyed. 01069_ as-79254 destroyed. 01070_ U-05 Engineer lays Concrete. Map ----- +----------------------------------------------------+ | ?????????????????????????????????? | | ?????????????????????????????????? | | ?????????????????????????????????? | | ?????????????????????????????????? | | ?????????????????????????????????? | | ?????????????????????????????????? | | ?????????????????????????????????? | | ?????????????????????????????????? | | ?????????????????????????????????? | | ?????????????????????????????????? | | ?????????????????????????????????? | | ??????#####??????????????????????? | | ??????# ???????????????????????? | | ??????# ???????????????????????? | | ??????# %#???????????????????????? | | ??????# #???????????????????????? | | ????###$u##??????????????????????? | | ???## d ##?????????????????????? | | ???# #?????????????????????? | | ??## #?????????????????????? | | ??# ##????????????????????? | | ??## d ##???????????????????? | | ??# #???????????????????? | | ???# #???????????????????? | | ???# ##???????????????????? | | ???# @ # """??????????????? | | ???# "" ????????????? | | ???## a #??????????? | | ????#### ##??????????? | | ???????## ##???????????? | | ????????## % ######????????????? | | ?????????? #????????????????? | | ?????????? a ##????????????????? | | ?????????? ?????????????????? | | ?????????? #????????????????? | | ?????????? ????????????????? | | ?????????? #???????????????? | | ??????????? < ##???????????????? | | ??????????? ##????????????????? | | ??????????? ???????????????????? | | ??????????? ?????????????????????? | | ?????????????????????????????????? | | ?????????????????????????????????? | | ?????????????????????????????????? | | ?????????????????????????????????? | | ?????????????????????????????????? | | ?????????????????????????????????? | | ?????????????????????????????????? | | ?????????????????????????????????? | | ?????????????????????????????????? | +----------------------------------------------------+ Best States ------------- Heat Dissipation 25 Energy Generation 10 Energy Capacity 250 Matter Stores 300 Matter Capacity 300 Sight Range 16 Terrain Scan Density 10 Evasion (%) 55 Item Schematics ----------------- None Robot Schematics ------------------ None Fabricated ------------ Nothing Repaired ---------- Nothing Studied --------- None Alien Tech Used ----------------- None Achievements -------------- Quick And Dirty Challenges ------------ None Game ------ Seed CompositeHackingFragment Manual? 0 Play Time 00:11:58 Cumulative 25.0 hours Start 2025.11.07 @ 15:56:38 End 2025.11.07 @ 16:07:18 Sessions 1 Manual Loads 0 Difficulty Rogue Special Mode None Game No. 18 Rogue 12 Adventurer 5 Explorer 1 Win Type - Total 1 Types 1/0/0/0/0/0/0/0/0/0 Lore% 12 Gallery% 31 Achievement% 20 Wizard Run 0 Options --------- Layout 1 ASCII 0 Keyboard 0 Movement Mouse Keybinds 0 Fullscreen 2 Font 24/Smallcaps Map View 50x35 Zoom Use 0% Tactical HUD 1 Map Filters NONE Filters NONE Steam 1 RUN: 3245799b-18bf-446a-8a45-2dccd22cd094